[Event "41st Jacques-Lemans-Open 2022"]
[Site "St. Veit/Glan"]
[Date "2022.07.11"]
[Round "4.26"]
[White "Schein, Karl-Heinz"]
[Black "Rempe, Jonas"]
[Result "1-0"]
[ECO "E73"]
[WhiteElo "2167"]
[BlackElo "1861"]
[Annotator "ChessBase"]
[PlyCount "133"]
[EventDate "2022.07.09"]
[EventType "swiss"]
[EventCountry "AUT"]
[SourceTitle "playchess.com"]
[Source "ChessBase"]
[SourceQuality "1"]
[TimeControl "40/5400+30:1800+30"]

1. d4 {[%emt 0:00:15]} Nf6 {[%emt 0:00:08]} 2. c4 {[%emt 0:00:27]} g6 {[%emt 0:00:02]} 3. Nc3 {[%emt 0:00:15]} Bg7 {[%emt 0:00:01]} 4. e4 {[%emt 0:00:35]} d6 {[%emt 0:00:03]} 5. Be2 {[%emt 0:00:30]} O-O {[%emt 0:00:05]} 6. Bg5 {[%emt 0:00:15]} Na6 {[%emt 0:05:10]} 7. f4 {[%emt 0:00:33]} c5 {[%emt 0:26:28]} 8. d5 {[%emt 0:00:30]} Qa5 {[%emt 0:00:15]} 9. Qd2 {[%emt 0:01:54]} e6 {[%emt 0:03:00]} 10. Nf3 {[%emt 0:02:06]} exd5 {[%emt 0:01:43]} 11. cxd5 {[%emt 0:00:15]} Re8 {[%emt 0:07:04]} 12. O-O {[%emt 0:00:22]} Qb4 {[%emt 0:10:52]} 13. e5 {[%emt 0:13:59]} dxe5 {[%emt 0:01:32]} 14. fxe5 {[%emt 0:01:23]} Ng4 {[%emt 0:01:03]} 15. Bb5 {[%emt 0:10:08]} Rxe5 {[%emt 0:16:27]} 16. Nxe5 {[%emt 0:01:54]} Bxe5 {[%emt 0:00:21]} 17. h3 {[%emt 0:07:26]} Nc7 {[%emt 0:00:55]} 18. Be2 {[%emt 0:14:46]} Qd4+ {[%emt 0:04:03]} 19. Qxd4 {[%emt 0:07:01]} Bxd4+ {[%emt 0:00:07]} 20. Kh1 {[%emt 0:00:06]} Nf2+ {[%emt 0:00:13]} 21. Kh2 {[%emt 0:00:58]} Bxc3 {[%emt 0:00:16]} 22. bxc3 {[%emt 0:00:49]} Ne4 {[%emt 0:00:02]} 23. d6 {[%emt 0:02:50]} Ne8 {[%emt 0:09:18]} 24. Be7 {[%emt 0:02:03]} N8xd6 {[%emt 0:01:19]} 25. Rad1 {[%emt 0:06:05]} Be6 {[%emt 0:01:04]} 26. Bxd6 {[%emt 0:04:28]} Nxc3 {[%emt 0:00:02]} 27. Rde1 {[%emt 0:02:13]} Nxe2 {[%emt 0:00:03]} 28. Rxe2 {[%emt 0:00:09]} Bc4 {[%emt 0:00:02]} 29. Rfe1 {[%emt 0:00:21]} Bxe2 {[%emt 0:00:01]} 30. Rxe2 {[%emt 0:00:12]} Rd8 {[%emt 0:06:21]} 31. Bxc5 b6 32. Bf2 {[%emt 0:01:36]} Rd7 {[%emt 0:00:54]} 33. Rc2 {[%emt 0:10:44]} Kg7 {[%emt 0:03:29]} 34. Bg3 {[%emt 0:02:15]} Rd3 {[%emt 0:00:11]} 35. Be5+ {[%emt 0:02:28]} Kh6 {[%emt 0:02:14]} 36. Rc7 {[%emt 0:01:21]} Ra3 {[%emt 0:01:17]} 37. Rxf7 {[%emt 0:00:39]} Rxa2 {[%emt 0:00:23]} 38. h4 {[%emt 0:01:56]} g5 {[%emt 0:00:52]} 39. hxg5+ {[%emt 0:01:29]} Kxg5 {[%emt 0:00:02]} 40. Rxh7 {[%emt 0:00:19]} b5 {[%emt 0:01:10]} 41. Rb7 {[%emt 0:30:52]} a6 {[%emt 0:30:02]} 42. Rb6 {[%emt 0:00:58]} Kf5 {[%emt 0:00:00]} 43. Bd6 {[%emt 0:00:00]} Kg4 {[%emt 0:00:00]} 44. Bf8 {[%emt 0:00:00]} Kh4 {[%emt 0:00:00]} 45. Rb8 {[%emt 0:00:00]} Kg4 {[%emt 0:00:00]} 46. Bd6 {[%emt 0:00:00]} Kh4 {[%emt 0:00:00]} 47. Rg8 {[%emt 0:00:00]} a5 {[%emt 0:00:00]} 48. Be7+ {[%emt 0:00:00]} Kh5 {[%emt 0:00:00]} 49. Rg5+ {[%emt 0:00:00]} Kh6 {[%emt 0:00:00]} 50. Rxb5 {[%emt 0:00:00]} Kg6 {[%emt 0:00:00]} 51. Kg3 {[%emt 0:00:00]} a4 {[%emt 0:00:00]} 52. Ra5 {[%emt 0:00:00]} Kf7 {[%emt 0:00:00]} 53. Bc5 {[%emt 0:00:00]} Kg6 {[%emt 0:00:00]} 54. Kf3 {[%emt 0:00:00]} Kf5 {[%emt 0:00:00]} 55. g4+ {[%emt 0:00:00]} Kg6 {[%emt 0:00:00]} 56. Kf4 {[%emt 0:00:00]} Rc2 {[%emt 0:00:00]} 57. Ra6+ {[%emt 0:00:00]} Kf7 {[%emt 0:00:00]} 58. Bd4 {[%emt 0:00:00]} Rc4 {[%emt 0:00:00]} 59. Ke5 {[%emt 0:00:00]} a3 {[%emt 0:00:00]} 60. g5 {[%emt 0:00:00]} Rc8 {[%emt 0:00:00]} 61. g6+ {[%emt 0:00:00]} Kg8 {[%emt 0:00:00]} 62. Rxa3 {[%emt 0:00:00]} Re8+ {[%emt 0:00:00]} 63. Kf5 {[%emt 0:00:00]} Rd8 {[%emt 0:00:00]} 64. Be5 {[%emt 0:00:00]} Rf8+ {[%emt 0:00:00]} 65. Bf6 {[%emt 0:00:00]} Rb8 {[%emt 0:00:00]} 66. Rh3 {[%emt 0:00:00]} Rb5+ {[%emt 0:00:00]} 67. Be5 {[%emt 0:00:00]} 1-0

[Event "41st Jacques-Lemans-Open 2022"]
[Site "St. Veit/Glan"]
[Date "2022.07.11"]
[Round "4.27"]
[White "Hoffmann, Sebastian"]
[Black "Huber, Mario"]
[Result "1-0"]
[ECO "A52"]
[WhiteElo "2148"]
[BlackElo "2125"]
[Annotator "ChessBase"]
[PlyCount "137"]
[EventDate "2022.07.09"]
[EventType "swiss"]
[EventCountry "AUT"]
[SourceTitle "playchess.com"]
[Source "ChessBase"]
[SourceQuality "1"]
[TimeControl "40/5400+30:1800+30"]

1. d4 {[%emt 0:00:04]} Nf6 {[%emt 0:00:14]} 2. c4 {[%emt 0:00:10]} e5 {[%emt 0:00:04]} 3. dxe5 {[%emt 0:00:06]} Ng4 {[%emt 0:00:09]} 4. e3 {[%emt 0:00:12]} Nxe5 {[%emt 0:01:10]} 5. Nh3 {[%emt 0:00:05]} d6 {[%emt 0:02:12]} 6. Nf4 {[%emt 0:00:08]} Be7 {[%emt 0:03:28]} 7. Be2 {[%emt 0:00:51]} Nbc6 {[%emt 0:00:20]} 8. Nc3 {[%emt 0:00:43]} Bf6 {[%emt 0:04:13]} 9. O-O {[%emt 0:01:51]} g6 {[%emt 0:10:28]} 10. Nfd5 {[%emt 0:02:53]} Bg7 {[%emt 0:00:31]} 11. Nb5 {[%emt 0:00:15]} O-O 12. Nbxc7 Rb8 {[%emt 0:06:53]} 13. Nb5 {[%emt 0:00:51]} a6 {[%emt 0:05:12]} 14. Nbc3 {[%emt 0:02:59]} Be6 {[%emt 0:05:34]} 15. h3 {[%emt 0:07:27]} Qh4 {[%emt 0:04:55]} 16. f4 {[%emt 0:07:27]} Nd7 {[%emt 0:11:33]} 17. Qe1 {[%emt 0:02:50]} Qxe1 {[%emt 0:01:08]} 18. Rxe1 {[%emt 0:00:05]} f5 {[%emt 0:04:53]} 19. Rb1 {[%emt 0:02:51]} Kf7 {[%emt 0:00:20]} 20. b3 {[%emt 0:01:08]} Nf6 {[%emt 0:04:47]} 21. Bf3 {[%emt 0:01:00]} Ne7 {[%emt 0:01:06]} 22. Rd1 {[%emt 0:05:40]} Nexd5 {[%emt 0:01:36]} 23. Nxd5 {[%emt 0:00:12]} Nxd5 {[%emt 0:00:14]} 24. Bxd5 {[%emt 0:00:30]} b5 {[%emt 0:00:18]} 25. Ba3 {[%emt 0:05:39]} Rfd8 {[%emt 0:02:03]} 26. cxb5 {[%emt 0:04:57]} Rxb5 {[%emt 0:01:39]} 27. Bc6 {[%emt 0:14:49]} Ra5 {[%emt 0:04:26]} 28. Ba4 {[%emt 0:00:55]} Rd5 {[%emt 0:00:21]} 29. Rxd5 {[%emt 0:01:00]} Bxd5 {[%emt 0:00:14]} 30. Rc1 {[%emt 0:00:03]} Bf6 {[%emt 0:03:55]} 31. Rc7+ {[%emt 0:00:21]} Be7 {[%emt 0:00:16]} 32. Bd7 {[%emt 0:05:15]} Rb8 {[%emt 0:01:58]} 33. Bc6 {[%emt 0:01:22]} Bxc6 {[%emt 0:04:57]} 34. Rxc6 {[%emt 0:00:06]} Ke6 {[%emt 0:00:03]} 35. Rxa6 {[%emt 0:00:58]} Rc8 {[%emt 0:00:04]} 36. Bb2 {[%emt 0:01:39]} Rc2 {[%emt 0:01:40]} 37. Bd4 {[%emt 0:00:10]} Bh4 {[%emt 0:00:21]} 38. Kh2 {[%emt 0:03:13]} Kd5 {[%emt 0:00:43]} 39. a4 {[%emt 0:00:41]} h5 {[%emt 0:00:22]} 40. Ba7 {[%emt 0:14:28]} Bf2 {[%emt 0:03:59]} 41. e4+ {[%emt 0:38:15]} fxe4 {[%emt 0:32:05]} 42. Ra5+ {[%emt 0:00:05]} Ke6 {[%emt 0:02:39]} 43. Bxf2 {[%emt 0:00:00]} Rxf2 {[%emt 0:00:00]} 44. Rg5 {[%emt 0:00:00]} Kf6 {[%emt 0:00:00]} 45. Rg3 {[%emt 0:00:00]} Rxf4 {[%emt 0:00:00]} 46. b4 {[%emt 0:00:00]} e3 {[%emt 0:00:00]} 47. Rxe3 {[%emt 0:00:00]} Rxb4 {[%emt 0:00:00]} 48. Ra3 {[%emt 0:00:00]} Rb6 {[%emt 0:00:00]} 49. a5 {[%emt 0:00:00]} Ra6 {[%emt 0:00:00]} 50. Kg3 {[%emt 0:00:00]} Ke5 {[%emt 0:00:00]} 51. Ra4 {[%emt 0:00:00]} Kd5 {[%emt 0:00:00]} 52. Kf4 {[%emt 0:00:00]} Kc5 {[%emt 0:00:00]} 53. Ke4 {[%emt 0:00:00]} d5+ {[%emt 0:00:00]} 54. Ke5 {[%emt 0:00:00]} h4 {[%emt 0:00:00]} 55. Rd4 {[%emt 0:00:00]} Rd6 {[%emt 0:00:00]} 56. a6 {[%emt 0:01:04]} Rxa6 {[%emt 0:00:00]} 57. Rxd5+ {[%emt 0:00:06]} Kc4 {[%emt 0:00:00]} 58. Rd4+ {[%emt 0:00:13]} Kc3 {[%emt 0:00:44]} 59. Rxh4 {[%emt 0:00:10]} Kd3 {[%emt 0:00:16]} 60. Rf4 {[%emt 0:02:23]} Ke3 {[%emt 0:00:56]} 61. Rf3+ {[%emt 0:00:53]} Ke2 {[%emt 0:01:01]} 62. Rf6 {[%emt 0:01:01]} Ra5+ {[%emt 0:01:34]} 63. Kf4 {[%emt 0:00:19]} Kf2 {[%emt 0:04:09]} 64. Rxg6 {[%emt 0:00:56]} Ra8 {[%emt 0:02:11]} 65. Rg4 {[%emt 0:04:50]} Rf8+ {[%emt 0:02:01]} 66. Kg5 {[%emt 0:00:01]} Rg8+ {[%emt 0:00:45]} 67. Kh6 {[%emt 0:00:02]} Rh8+ {[%emt 0:00:14]} 68. Kg7 {[%emt 0:00:02]} Rh5 {[%emt 0:00:15]} 69. h4 {[%emt 0:00:22]} 1-0

[Event "41st Jacques-Lemans-Open 2022"]
[Site "St. Veit/Glan"]
[Date "2022.07.11"]
[Round "4.28"]
[White "Klausner, Felix"]
[Black "Leitner, Gerald"]
[Result "0-1"]
[ECO "C05"]
[WhiteElo "1943"]
[BlackElo "2145"]
[Annotator "ChessBase"]
[PlyCount "48"]
[EventDate "2022.07.09"]
[EventType "swiss"]
[EventCountry "AUT"]
[SourceTitle "playchess.com"]
[Source "ChessBase"]
[SourceQuality "1"]
[TimeControl "40/5400+30:1800+30"]

1. e4 {[%emt 0:00:08]} e6 {[%emt 0:00:04]} 2. d4 {[%emt 0:00:11]} d5 {[%emt 0:00:03]} 3. Nd2 {[%emt 0:00:16]} Nf6 {[%emt 0:00:04]} 4. e5 {[%emt 0:00:13]} Nfd7 {[%emt 0:00:00]} 5. Bd3 {[%emt 0:00:19]} c5 {[%emt 0:00:09]} 6. c3 {[%emt 0:00:14]} Nc6 {[%emt 0:00:02]} 7. Ne2 {[%emt 0:00:20]} Rb8 {[%emt 0:01:19]} 8. O-O {[%emt 0:03:05]} b5 {[%emt 0:00:01]} 9. f4 {[%emt 0:05:59]} g6 {[%emt 0:00:13]} 10. Nf3 {[%emt 0:02:59]} b4 {[%emt 0:10:40]} 11. Be3 {[%emt 0:05:37]} Qa5 {[%emt 0:02:46]} 12. c4 {[%emt 0:06:26]} dxc4 {[%emt 0:00:12]} 13. Bxc4 {[%emt 0:00:11]} Nb6 {[%emt 0:08:04]} 14. Bb3 {[%emt 0:03:16]} c4 {[%emt 0:02:53]} 15. Bc2 {[%emt 0:00:09]} Nd5 {[%emt 0:00:29]} 16. Bf2 {[%emt 0:04:00]} Ba6 {[%emt 0:02:23]} 17. g3 {[%emt 0:08:21]} Be7 {[%emt 0:01:07]} 18. Rc1 {[%emt 0:04:35]} O-O {[%emt 0:01:32]} 19. Ng5 {[%emt 0:07:27]} Rfc8 {[%emt 0:03:05]} 20. Ne4 {[%emt 0:03:03]} c3 {[%emt 0:14:59]} 21. b3 {[%emt 0:04:49]} Rd8 {[%emt 0:12:03]} 22. Bb1 {[%emt 0:02:49]} Nc7 {[%emt 0:06:03]} 23. Re1 {[%emt 0:01:34]} Kg7 {[%emt 0:00:56]} 24. Rc2 {[%emt 0:03:20]} Nb5 {[%emt 0:01:49]} 0-1

[Event "41st Jacques-Lemans-Open 2022"]
[Site "St. Veit/Glan"]
[Date "2022.07.11"]
[Round "4.29"]
[White "Praznik, Anton"]
[Black "Enne, Harald"]
[Result "1/2-1/2"]
[ECO "B51"]
[WhiteElo "2137"]
[BlackElo "1919"]
[Annotator "ChessBase"]
[PlyCount "67"]
[EventDate "2022.07.09"]
[EventType "swiss"]
[EventCountry "AUT"]
[SourceTitle "playchess.com"]
[Source "ChessBase"]
[SourceQuality "1"]
[TimeControl "40/5400+30:1800+30"]

1. e4 {[%emt 0:00:04]} c5 {[%emt 0:00:11]} 2. Nf3 {[%emt 0:00:35]} d6 {[%emt 0:00:07]} 3. Bb5+ {[%emt 0:01:19]} Nc6 {[%emt 0:00:29]} 4. Bxc6+ {[%emt 0:00:55]} bxc6 {[%emt 0:00:04]} 5. O-O {[%emt 0:00:58]} e5 {[%emt 0:00:19]} 6. b3 {[%emt 0:00:47]} Nf6 {[%emt 0:00:16]} 7. Re1 {[%emt 0:00:15]} Bg4 {[%emt 0:01:36]} 8. h3 {[%emt 0:00:16]} Bh5 {[%emt 0:00:08]} 9. c3 {[%emt 0:01:34]} Be7 {[%emt 0:01:42]} 10. d3 {[%emt 0:06:03]} O-O {[%emt 0:00:42]} 11. Nbd2 {[%emt 0:00:55]} Qc7 {[%emt 0:10:47]} 12. Nf1 {[%emt 0:01:11]} Bxf3 {[%emt 0:07:52]} 13. Qxf3 {[%emt 0:01:39]} d5 {[%emt 0:01:38]} 14. Bg5 {[%emt 0:04:50]} d4 {[%emt 0:09:35]} 15. cxd4 {[%emt 0:04:27]} cxd4 {[%emt 0:00:11]} 16. Rac1 {[%emt 0:02:29]} Rac8 {[%emt 0:04:02]} 17. Rc4 {[%emt 0:08:56]} Ne8 {[%emt 0:19:50]} 18. Bxe7 {[%emt 0:07:10]} Qxe7 {[%emt 0:00:03]} 19. Rec1 {[%emt 0:06:36]} Qa3 {[%emt 0:06:48]} 20. Qe2 {[%emt 0:10:24]} Nd6 {[%emt 0:01:34]} 21. Rxc6 {[%emt 0:05:11]} Qxc1 {[%emt 0:02:22]} 22. Rxc1 {[%emt 0:02:09]} Rxc1 {[%emt 0:00:02]} 23. Kh2 {[%emt 0:00:46]} Rfc8 {[%emt 0:00:09]} 24. Ng3 {[%emt 0:02:50]} R8c2 {[%emt 0:06:00]} 25. Qg4 {[%emt 0:03:30]} Rxf2 {[%emt 0:01:23]} 26. Qd7 {[%emt 0:09:15]} h5 {[%emt 0:08:25]} 27. Qxd6 {[%emt 0:02:08]} Rcc2 {[%emt 0:00:21]} 28. Qxe5 {[%emt 0:01:59]} Rxg2+ {[%emt 0:00:20]} 29. Kh1 {[%emt 0:00:34]} Rh2+ {[%emt 0:07:08]} 30. Kg1 {[%emt 0:00:02]} Rcg2+ {[%emt 0:00:06]} 31. Kf1 {[%emt 0:00:27]} Rb2 {[%emt 0:00:39]} 32. Kg1 {[%emt 0:03:39]} Rbg2+ {[%emt 0:00:02]} 33. Kf1 {[%emt 0:00:12]} Rb2 {[%emt 0:00:02]} 34. Kg1 {[%emt 0:00:20]} 1/2-1/2

[Event "41st Jacques-Lemans-Open 2022"]
[Site "St. Veit/Glan"]
[Date "2022.07.11"]
[Round "4.30"]
[White "Wegerer, Fred"]
[Black "Praxmarer, Christian"]
[Result "0-1"]
[ECO "A13"]
[WhiteElo "2137"]
[BlackElo "1906"]
[Annotator "ChessBase"]
[PlyCount "86"]
[EventDate "2022.07.09"]
[EventType "swiss"]
[EventCountry "AUT"]
[SourceTitle "playchess.com"]
[Source "ChessBase"]
[SourceQuality "1"]
[TimeControl "40/5400+30:1800+30"]

1. c4 {[%emt 0:00:04]} e6 {[%emt 0:00:40]} 2. Nc3 {[%emt 0:00:56]} f5 {[%emt 0:00:20]} 3. e4 {[%emt 0:11:13]} fxe4 {[%emt 0:01:25]} 4. d3 {[%emt 0:00:52]} Bb4 {[%emt 0:09:16]} 5. Bd2 {[%emt 0:05:09]} Nf6 {[%emt 0:04:43]} 6. dxe4 {[%emt 0:00:50]} e5 {[%emt 0:00:27]} 7. Bd3 {[%emt 0:02:40]} O-O {[%emt 0:01:22]} 8. Nf3 {[%emt 0:05:38]} d6 {[%emt 0:07:20]} 9. h3 {[%emt 0:00:08]} Na6 {[%emt 0:03:50]} 10. Nd5 {[%emt 0:41:40]} Bxd2+ {[%emt 0:00:23]} 11. Qxd2 {[%emt 0:00:04]} Nc5 {[%emt 0:00:35]} 12. Nxf6+ {[%emt 0:10:28]} Qxf6 {[%emt 0:01:09]} 13. O-O-O {[%emt 0:00:10]} Qf4 {[%emt 0:10:19]} 14. Qxf4 {[%emt 0:00:20]} Rxf4 {[%emt 0:00:03]} 15. Bc2 {[%emt 0:12:20]} Bd7 {[%emt 0:20:38]} 16. b4 {[%emt 0:03:36]} Nxe4 {[%emt 0:03:31]} 17. Nxe5 {[%emt 0:00:41]} Be6 {[%emt 0:22:55]} 18. g3 {[%emt 0:00:46]} Rxf2 {[%emt 0:00:34]} 19. Bxe4 {[%emt 0:00:32]} dxe5 {[%emt 0:00:26]} 20. Bxb7 {[%emt 0:00:12]} Rb8 {[%emt 0:00:44]} 21. Bd5 {[%emt 0:00:04]} Bxd5 {[%emt 0:02:45]} 22. Rxd5 {[%emt 0:00:01]} Rxb4 {[%emt 0:01:12]} 23. Re1 {[%emt 0:02:57]} Rxc4+ {[%emt 0:00:49]} 24. Kb1 {[%emt 0:00:00]} e4 {[%emt 0:00:59]} 25. Re5 {[%emt 0:01:04]} Rb4+ {[%emt 0:01:42]} 26. Ka1 {[%emt 0:00:07]} Ra4 {[%emt 0:01:26]} 27. Kb1 {[%emt 0:00:14]} Rfxa2 {[%emt 0:01:00]} 28. R1xe4 {[%emt 0:01:08]} Rxe4 {[%emt 0:00:12]} 29. Rxe4 {[%emt 0:00:03]} Ra3 {[%emt 0:00:04]} 30. Rg4 {[%emt 0:00:17]} Rc3 {[%emt 0:01:39]} 31. Kb2 {[%emt 0:00:08]} Rc6 {[%emt 0:00:18]} 32. Rf4 {[%emt 0:00:11]} g6 {[%emt 0:00:30]} 33. Kb3 {[%emt 0:00:25]} Kg7 {[%emt 0:00:14]} 34. Kb4 {[%emt 0:00:06]} Rf6 {[%emt 0:01:07]} 35. Rc4 {[%emt 0:00:07]} Rf3 {[%emt 0:01:02]} 36. Rxc7+ {[%emt 0:00:17]} Kh6 {[%emt 0:00:01]} 37. g4 {[%emt 0:00:22]} Rxh3 {[%emt 0:00:38]} 38. Rxa7 {[%emt 0:00:25]} Rh4 {[%emt 0:00:37]} 39. Kc3 {[%emt 0:00:13]} Rxg4 {[%emt 0:00:14]} 40. Kd3 {[%emt 0:00:03]} Rf4 {[%emt 0:00:40]} 41. Ke3 {[%emt 0:30:09]} Rf8 {[%emt 0:31:10]} 42. Rb7 {[%emt 0:00:09]} g5 {[%emt 0:00:29]} 43. Rc7 {[%emt 0:00:09]} Kg6 {[%emt 0:00:29]} 0-1

[Event "41st Jacques-Lemans-Open 2022"]
[Site "St. Veit/Glan"]
[Date "2022.07.11"]
[Round "4.31"]
[White "Bethke, Robert"]
[Black "Merei, David"]
[Result "1-0"]
[ECO "D37"]
[WhiteElo "2070"]
[BlackElo "1839"]
[Annotator "ChessBase"]
[PlyCount "83"]
[EventDate "2022.07.09"]
[EventType "swiss"]
[EventCountry "AUT"]
[SourceTitle "playchess.com"]
[Source "ChessBase"]
[SourceQuality "1"]
[TimeControl "40/5400+30:1800+30"]

1. d4 {[%emt 0:00:01]} d5 {[%emt 0:00:17]} 2. c4 {[%emt 0:00:04]} e6 {[%emt 0:00:07]} 3. Nc3 {[%emt 0:00:13]} Nf6 {[%emt 0:00:34]} 4. Nf3 {[%emt 0:00:40]} Be7 {[%emt 0:00:28]} 5. Bf4 {[%emt 0:01:06]} c5 {[%emt 0:07:08]} 6. e3 {[%emt 0:04:14]} O-O {[%emt 0:01:14]} 7. Be2 {[%emt 0:00:30]} Nc6 {[%emt 0:02:03]} 8. dxc5 {[%emt 0:02:26]} Bxc5 {[%emt 0:01:12]} 9. cxd5 {[%emt 0:01:01]} exd5 {[%emt 0:00:54]} 10. O-O {[%emt 0:00:08]} Bf5 {[%emt 0:08:14]} 11. Bg5 {[%emt 0:01:27]} Be6 {[%emt 0:04:57]} 12. Rc1 {[%emt 0:01:22]} Be7 {[%emt 0:01:28]} 13. Nd4 {[%emt 0:00:26]} h6 {[%emt 0:12:19]} 14. Bh4 {[%emt 0:04:28]} Qb6 {[%emt 0:03:41]} 15. Na4 {[%emt 0:04:07]} Qb4 {[%emt 0:02:50]} 16. a3 {[%emt 0:01:14]} Qd6 {[%emt 0:01:38]} 17. Bg3 {[%emt 0:03:39]} Qd7 {[%emt 0:02:12]} 18. Bb5 {[%emt 0:01:04]} Rac8 {[%emt 0:01:38]} 19. Nxc6 {[%emt 0:00:56]} bxc6 {[%emt 0:00:27]} 20. Ba6 {[%emt 0:00:03]} Rce8 {[%emt 0:03:00]} 21. Qc2 {[%emt 0:01:27]} Ne4 {[%emt 0:03:11]} 22. b4 {[%emt 0:02:11]} Nxg3 {[%emt 0:01:30]} 23. hxg3 {[%emt 0:00:10]} Bf5 {[%emt 0:01:57]} 24. Nc5 {[%emt 0:01:40]} Bxc5 {[%emt 0:02:20]} 25. Qxc5 {[%emt 0:00:28]} Re6 {[%emt 0:04:17]} 26. Rfd1 {[%emt 0:01:24]} Be4 {[%emt 0:10:21]} 27. f3 {[%emt 0:03:56]} Bh7 {[%emt 0:08:06]} 28. e4 {[%emt 0:01:47]} Rg6 {[%emt 0:02:49]} 29. exd5 {[%emt 0:01:36]} Rxg3 {[%emt 0:00:48]} 30. dxc6 {[%emt 0:01:10]} Qh3 {[%emt 0:03:34]} 31. Qf2 {[%emt 0:00:23]} Bf5 {[%emt 0:01:21]} 32. c7 {[%emt 0:00:08]} Rg6 {[%emt 0:02:41]} 33. Rd6 {[%emt 0:02:28]} Rxd6 {[%emt 0:02:42]} 34. gxh3 {[%emt 0:01:36]} Rxa6 {[%emt 0:00:11]} 35. Qc5 {[%emt 0:01:45]} Bxh3 {[%emt 0:02:31]} 36. b5 {[%emt 0:00:21]} Rg6+ {[%emt 0:01:37]} 37. Kh2 {[%emt 0:00:20]} Bc8 {[%emt 0:00:24]} 38. Rd1 {[%emt 0:01:31]} Rg5 {[%emt 0:00:45]} 39. Qe7 {[%emt 0:01:01]} Rh5+ {[%emt 0:00:56]} 40. Kg3 {[%emt 0:01:05]} f5 {[%emt 0:00:54]} 41. Rd8 {[%emt 0:30:53]} f4+ {[%emt 0:30:11]} 42. Kf2 {[%emt 0:01:09]} 1-0

[Event "41st Jacques-Lemans-Open 2022"]
[Site "St. Veit/Glan"]
[Date "2022.07.11"]
[Round "4.32"]
[White "Hafner, Robert"]
[Black "Rabensteiner, Klaus"]
[Result "1/2-1/2"]
[ECO "D05"]
[WhiteElo "1933"]
[BlackElo "2019"]
[Annotator "ChessBase"]
[PlyCount "149"]
[EventDate "2022.07.09"]
[EventType "swiss"]
[EventCountry "AUT"]
[SourceTitle "playchess.com"]
[Source "ChessBase"]
[SourceQuality "1"]
[TimeControl "40/5400+30:1800+30"]

1. d4 {[%emt 0:00:04]} d5 {[%emt 0:00:06]} 2. e3 {[%emt 0:00:04]} Nf6 {[%emt 0:00:04]} 3. Nf3 {[%emt 0:00:04]} e6 {[%emt 0:00:39]} 4. Be2 {[%emt 0:00:05]} b6 {[%emt 0:00:10]} 5. O-O {[%emt 0:00:07]} Bb7 {[%emt 0:00:01]} 6. b3 {[%emt 0:00:08]} Nbd7 {[%emt 0:00:04]} 7. Bb2 {[%emt 0:00:06]} Be7 {[%emt 0:00:52]} 8. Nbd2 {[%emt 0:00:06]} O-O {[%emt 0:00:24]} 9. c4 {[%emt 0:00:05]} c5 {[%emt 0:00:11]} 10. Rc1 {[%emt 0:00:06]} Ne4 {[%emt 0:00:45]} 11. Qc2 {[%emt 0:05:28]} f5 {[%emt 0:01:48]} 12. dxc5 {[%emt 0:04:25]} Ndxc5 {[%emt 0:07:50]} 13. Ne5 {[%emt 0:06:51]} Nxd2 {[%emt 0:02:41]} 14. Qxd2 {[%emt 0:00:07]} Bf6 {[%emt 0:00:05]} 15. Rfd1 {[%emt 0:09:51]} Qe7 {[%emt 0:21:34]} 16. Qc2 {[%emt 0:08:46]} Rfd8 {[%emt 0:10:30]} 17. Qb1 {[%emt 0:16:49]} Nd7 {[%emt 0:02:16]} 18. Qa1 {[%emt 0:02:45]} Nxe5 {[%emt 0:09:11]} 19. Bxe5 {[%emt 0:00:05]} Bxe5 {[%emt 0:00:26]} 20. Qxe5 {[%emt 0:00:05]} Qd6 {[%emt 0:00:01]} 21. Qxd6 {[%emt 0:01:48]} Rxd6 {[%emt 0:00:07]} 22. cxd5 {[%emt 0:05:27]} Bxd5 {[%emt 0:03:40]} 23. Rc7 {[%emt 0:16:53]} a6 {[%emt 0:13:34]} 24. h3 {[%emt 0:08:49]} b5 {[%emt 0:00:20]} 25. Bf3 {[%emt 0:00:24]} Rad8 {[%emt 0:01:05]} 26. Bxd5 {[%emt 0:00:25]} exd5 {[%emt 0:01:55]} 27. Kh2 {[%emt 0:04:48]} d4 {[%emt 0:05:54]} 28. exd4 {[%emt 0:00:07]} Rxd4 {[%emt 0:00:02]} 29. Re1 {[%emt 0:01:28]} R8d7 {[%emt 0:01:18]} 30. Rxd7 {[%emt 0:01:33]} Rxd7 {[%emt 0:00:02]} 31. Re6 {[%emt 0:00:12]} Rd2 {[%emt 0:08:35]} 32. Rxa6 {[%emt 0:00:07]} Rxf2 {[%emt 0:00:01]} 33. Kg3 {[%emt 0:01:26]} Rd2 {[%emt 0:00:43]} 34. Ra7 {[%emt 0:00:42]} Rd4 {[%emt 0:00:24]} 35. Kf3 {[%emt 0:00:46]} g5 {[%emt 0:03:46]} 36. Ra5 {[%emt 0:02:19]} Rd5 {[%emt 0:00:18]} 37. a4 {[%emt 0:00:29]} Rd3+ {[%emt 0:00:09]} 38. Ke2 {[%emt 0:00:26]} Rxb3 {[%emt 0:00:18]} 39. Rxb5 {[%emt 0:00:48]} Rg3 {[%emt 0:00:34]} 40. Rxf5 {[%emt 0:02:20]} Rxg2+ {[%emt 0:00:12]} 41. Kf3 {[%emt 0:30:16]} Rg1 {[%emt 0:30:48]} 42. Kf2 {[%emt 0:00:11]} Ra1 {[%emt 0:00:10]} 43. Rxg5+ {[%emt 0:00:07]} Kf7 {[%emt 0:00:29]} 44. Rg4 {[%emt 0:02:22]} Ra3 {[%emt 0:00:58]} 45. h4 {[%emt 0:01:40]} Kf6 {[%emt 0:00:43]} 46. Ke2 {[%emt 0:00:29]} Kf5 {[%emt 0:02:07]} 47. Rb4 {[%emt 0:00:20]} Ke5 {[%emt 0:00:32]} 48. Kd2 {[%emt 0:00:10]} Kd5 {[%emt 0:00:04]} 49. Kc2 {[%emt 0:00:23]} Kc5 {[%emt 0:00:36]} 50. Rf4 {[%emt 0:00:36]} Rh3 {[%emt 0:00:40]} 51. Kd2 {[%emt 0:00:00]} Kd5 {[%emt 0:00:00]} 52. Ke2 {[%emt 0:00:00]} Ke5 {[%emt 0:00:00]} 53. Rb4 {[%emt 0:00:00]} Ra3 {[%emt 0:00:00]} 54. Kf2 {[%emt 0:00:00]} Kf5 {[%emt 0:00:00]} 55. h5 {[%emt 0:00:00]} Kf6 {[%emt 0:00:00]} 56. Ke2 {[%emt 0:00:00]} Ke5 {[%emt 0:00:00]} 57. Kd2 {[%emt 0:00:00]} Kd5 {[%emt 0:00:00]} 58. Kc2 {[%emt 0:00:00]} Kc5 {[%emt 0:00:00]} 59. Rf4 {[%emt 0:00:00]} Rh3 60. Rf5+ Kc4 {[%emt 0:00:00]} 61. a5 {[%emt 0:00:00]} Rh2+ {[%emt 0:00:00]} 62. Kd1 {[%emt 0:00:00]} Kd4 {[%emt 0:00:00]} 63. Ke1 {[%emt 0:00:00]} Ke3 {[%emt 0:00:00]} 64. Kf1 {[%emt 0:00:00]} Ke4 {[%emt 0:00:00]} 65. Rb5 {[%emt 0:00:00]} Kf3 {[%emt 0:00:00]} 66. Rb3+ {[%emt 0:00:00]} Ke4 {[%emt 0:00:00]} 67. Ra3 {[%emt 0:00:00]} Rxh5 {[%emt 0:00:00]} 68. a6 {[%emt 0:00:00]} Rf5+ {[%emt 0:00:00]} 69. Kg2 {[%emt 0:00:00]} Rf8 {[%emt 0:00:00]} 70. a7 {[%emt 0:00:00]} Ra8 {[%emt 0:00:00]} 71. Ra5 {[%emt 0:00:00]} Kd4 {[%emt 0:00:00]} 72. Kf3 {[%emt 0:00:00]} Kc4 {[%emt 0:00:00]} 73. Ke4 {[%emt 0:00:22]} Kb4 {[%emt 0:00:00]} 74. Ra1 {[%emt 0:01:13]} Kb5 {[%emt 0:00:00]} 75. Kf5 {[%emt 0:01:26]} 1/2-1/2